fUST/lending_fUST_20250717
["ID","MTS","AMOUNT","RATE_DAILY","PERIOD"]
[372646310,1752731454853,-460.0,0.00019507,2]
[372646311,1752731454863,-1615.82,0.00019507,2]
[372646312,1752731454875,-2019.94,0.00019507,2]
[372646313,1752731454885,-460.0,0.00019507,2]
[372646314,1752731454894,-1692.93,0.00019507,2]
[372646315,1752731454904,-460.0,0.00019507,2]
[372646316,1752731454915,-1217.76,0.00019507,2]
[372646317,1752731454924,-460.0,0.00019507,2]
[372646318,1752731454934,-519.57,0.00019507,2]
[372646319,1752731454944,-460.0,0.00019507,2]
[372646320,1752731454954,-460.0,0.00019508,2]
[372646321,1752731454964,-460.0,0.00019508,2]
[372646322,1752731454974,-460.0,0.00019508,2]
[372646323,1752731454983,-199.18729656,0.00019508,2]
[372646324,1752731454992,-460.0,0.00019508,2]
[372646325,1752731455002,-460.0,0.00019508,2]
[372646326,1752731455012,-460.0,0.00019508,2]
[372646327,1752731455022,-562.91,0.00019508,2]
[372646328,1752731455031,-460.0,0.00019508,2]
[372646329,1752731455041,-557.04,0.00019508,2]
[372646330,1752731455051,-460.0,0.00019508,2]
[372646331,1752731455061,-503.79240288,0.00019508,2]
[372646332,1752731455071,-460.0,0.00019508,2]
[372646333,1752731455080,-516.25,0.00019508,2]
[372646334,1752731455090,-517.44,0.00019508,2]
[372646335,1752731455100,-882.21,0.00019508,2]
[372646336,1752731455109,-585.61,0.00019508,2]
[372646337,1752731455119,-510.2,0.00019508,2]
[372646338,1752731455128,-560.3,0.00019508,2]
[372646339,1752731455138,-460.0,0.00019508,2]
[372646340,1752731455148,-460.0,0.00019508,2]
[372646341,1752731455158,-3291.4,0.00019508,2]
[372646342,1752731455168,-460.0,0.00019508,2]
[372646343,1752731455178,-953.97,0.00019508,2]
[372646344,1752731455188,-460.0,0.00019509,2]
[372646345,1752731455198,-460.0,0.00019509,2]
[372646346,1752731455207,-460.0,0.00019509,2]
[372646347,1752731455216,-460.0,0.00019509,2]
[372646348,1752731455226,-460.0,0.00019509,2]
[372646349,1752731455235,-460.0,0.00019509,2]
[372646350,1752731455245,-516.54,0.00019509,2]
[372646351,1752731455255,-484.72,0.00019509,2]
[372646352,1752731455265,-460.0,0.00019509,2]
[372646353,1752731455275,-460.0,0.00019509,2]
[372646354,1752731455284,-1368.5,0.00019509,2]
[372646355,1752731455295,-2834.53591027,0.00019509,2]
[372646356,1752731455307,-196.32408973,0.00019509,2]
[372646357,1752731455316,-539.5,0.00019509,2]
[372646358,1752731455326,-1993.76,0.00019509,2]
[372646359,1752731455335,-493.3367181,0.00019509,2]
[372646360,1752731455789,-460.0,0.00018136,2]
[372646361,1752731455799,-460.0,0.00018136,2]
[372646362,1752731455809,-460.0,0.00018136,2]
[372646363,1752731455819,-584.69,0.00018137,2]
[372646364,1752731455830,-460.0,0.00018138,2]
[372646365,1752731455839,-464.35743125,0.00018139,2]
[372646366,1752731455849,-460.0,0.0001841,2]
[372646367,1752731455858,-460.0,0.0001841,2]
[372646368,1752731455868,-497.35694668,0.00018684,2]
[372646369,1752731455881,-500.0,0.00019178,2]
[372646370,1752731455890,-150.0,0.00019295,2]
[372646371,1752731455899,-550.6332819,0.00019509,2]
[372646372,1752731455909,-2130.55,0.00019509,2]
[372646373,1752731455919,-729.07,0.00019509,2]
[372646374,1752731455929,-481.79313195,0.00019509,2]
[372646375,1752731456579,150.0,0.00016563,2]
[372646380,1752731519777,-179.76055241,0.00018036,2]
[372646381,1752731519800,-76.02936144,0.00018038,2]
[372646382,1752731521532,-172.3009407,0.00018038,2]
[372646383,1752731524479,-227.66067857,0.00018037,2]
[372646386,1752731527303,-72.33932143,0.00018037,2]
[372646387,1752731527329,-226.11581904,0.00018038,2]
[372646388,1752731529374,800.0,0.00017934,2]
[372646389,1752731531130,-266.80424269,0.00018038,2]
[372646390,1752731535223,-440.83945273,0.00018038,2]
[372646391,1752731536833,-222.0636749,0.00018038,2]
[372646392,1752731539726,-266.07867593,0.00018038,2]
[372646394,1752731541855,-210.46548647,0.00018038,2]
[372646395,1752731544109,-168.20314998,0.00018038,2]
[372646396,1752731545923,-158.47227745,0.00018038,2]
[372646397,1752731547479,-270.41678168,0.00018038,2]
[372646398,1752731549128,-165.07630195,0.00018038,2]
[372646399,1752731552423,-250.8300793,0.00018037,2]
[372646400,1752731554774,-271.13250204,0.00018037,2]
[372646401,1752731563760,-249.1699207,0.00018037,2]
[372646402,1752731563786,-75.08176622,0.00018037,2]
[372646404,1752731566610,-188.87648389,0.00018037,2]
[372646405,1752731568162,-284.80519124,0.00018037,2]
[372646406,1752731570961,-200.66287179,0.00018037,2]
[372646407,1752731570985,-31.08593942,0.00018037,2]
[372646408,1752731575858,-326.90123157,0.00018037,2]
[372646409,1752731578406,-243.83868551,0.00018028,3]
[372646410,1752731580497,-249.71224856,0.00018028,3]
[372646411,1752731582636,-50.89906593,0.00018028,3]
[372646412,1752731582659,-101.23068407,0.00018037,2]
[372646413,1752731584975,-293.32686642,0.00018036,2]
[372646414,1752731587636,-6.67313358,0.00018036,2]
[372646415,1752731587666,-208.54183265,0.00018037,2]
[372646416,1752731589372,-236.69735543,0.00018028,3]
[372646417,1752731594577,-35.53264457,0.00018028,3]
[372646418,1752731594601,-150.22748328,0.00018037,2]
[372646419,1752731594625,-2.23987215,0.00018037,2]
[372646420,1752731603617,-186.89162395,0.00018028,3]
[372646421,1752731605716,3000.0,0.00023,30]
[372646422,1752731608396,-363.04298405,0.00018028,3]
[372646423,1752731611847,-266.755392,0.00018028,3]
[372646424,1752731612004,-52.56226922,0.00018037,2]
[372646425,1752731615115,-205.42197503,0.00018037,2]
[372646426,1752731619572,-188.62561857,0.00018037,2]
[372646427,1752731622064,-11.15026503,0.00018037,2]
[372646428,1752731622086,-261.43887107,0.00018037,2]
[372646429,1752731624382,-198.56112893,0.00018037,2]
[372646430,1752731624407,-69.64981385,0.00018037,2]
[372646431,1752731625996,-135.30599662,0.00018037,2]
[372646432,1752731626020,-81.54391076,0.00018037,2]
[372646433,1752731628288,-267.12331601,0.00018037,2]
[372646434,1752731630634,-151.33277323,0.00018037,2]
[372646435,1752731630658,-44.96769225,0.00018037,2]
[372646436,1752731633633,-251.5609549,0.00018037,2]
[372646437,1752731636989,-203.47135285,0.00018037,2]
[372646438,1752731637014,-114.11919862,0.00018037,2]
[372646440,1752731638651,-186.37661456,0.00018037,2]
[372646441,1752731640921,-199.50418682,0.00018037,2]
[372646442,1752731640945,-32.25470767,0.00018037,2]
[372646443,1752731643122,-163.76111911,0.00018036,2]
[372646444,1752731644889,-136.23888089,0.00018036,2]
[372646445,1752731644914,-189.73848378,0.00018037,2]
[372646446,1752731650446,-300.0,0.00018037,2]
[372646447,1752731653569,-160.0,0.00018037,2]
[372646448,1752731653590,-85.62561006,0.00018037,2]
[372646449,1752731655265,-162.43872283,0.00018037,2]
[372646451,1752731659825,-211.93566711,0.00018037,2]
[372646452,1752731659847,-431.64133124,0.00018037,2]
[372646454,1752731667827,-28.35866876,0.00018037,2]
[372646455,1752731667860,-145.66396657,0.00018037,2]
[372646456,1752731669101,166.0,0.00017111,2]
[372646457,1752731671610,-139.00535496,0.00018037,2]
[372646458,1752731671652,-189.42801346,0.00018037,2]
[372646459,1752731673740,-174.88390642,0.00018037,2]
[372646460,1752731677448,-135.68808012,0.00018037,2]
[372646461,1752731677472,-182.88994265,0.00018037,2]
[372646462,1752731679706,-244.22789852,0.00018036,2]
[372646463,1752731681417,-240.89402209,0.00018036,2]
[372646464,1752731682962,-204.72667979,0.00018036,2]
[372646465,1752731684696,-251.06485275,0.00018036,2]
[372646466,1752731685080,5915.3375174,0.00017111,2]
[372646468,1752731687052,-391.24870037,0.00018036,2]
[372646469,1752731689093,-280.8580243,0.00018036,2]
[372646470,1752731692841,2149.0759445,0.00017062,2]
[372646471,1752731698589,-290.87262399,0.00018036,2]
[372646472,1752731701379,-247.18083204,0.00018036,2]
[372646473,1752731703695,-389.03482213,0.00018036,2]
[372646475,1752731712676,-336.44613568,0.00018036,2]
[372646477,1752731718917,-187.65826045,0.00018035,2]
[372646478,1752731721241,-159.05619583,0.00018035,2]
[372646479,1752731725646,-226.99453966,0.00018035,2]
[372646480,1752731729620,-184.69572399,0.00018035,2]
[372646481,1752731734783,-194.35291794,0.00018035,2]
[372646483,1752731736384,-243.52953704,0.00018035,2]
[372646486,1752731742260,-3.71282509,0.00018035,2]
[372646487,1752731742284,-389.98434765,0.00018036,2]
[372646488,1752731743894,-330.36383892,0.00018036,2]
[372646489,1752731745732,204.86966403,0.00017982,2]
[372646490,1752731746036,-285.33287608,0.00018036,2]
[372646599,1752731750072,-203.32661958,0.00018036,2]
[372646600,1752731751962,-109.94932994,0.00018036,2]
[372646601,1752731751985,-132.19045218,0.00018036,2]
[372646602,1752731753693,-167.80954782,0.00018036,2]
[372646603,1752731753716,-277.06946057,0.00018036,2]
[372646604,1752731758124,-22.93053943,0.00018036,2]
[372646605,1752731758147,-240.89402209,0.00018036,2]
[372646606,1752731758169,-68.922729,0.00018036,2]
[372646607,1752731766196,-286.47047874,0.00018036,2]
[372646608,1752731767757,-13.52952126,0.00018036,2]
[372646609,1752731767781,-190.1697596,0.00018036,2]
[372646611,1752731769471,-109.8302404,0.00018036,2]
[372646612,1752731769498,-300.0,0.00018036,2]
[372646613,1752731769521,-155.55550231,0.00018037,2]
[372646614,1752731772053,244.704821,0.00017496,2]
[372646615,1752731772496,151.159973,0.00017496,2]
[372646616,1752731772896,172.45584671,0.00017496,2]
[372646617,1752731773824,-4.44449769,0.00018037,2]
[372646618,1752731773849,-177.73811664,0.00018037,2]
[372646619,1752731776023,-242.13978212,0.00018037,2]
[372646620,1752731783878,-218.97095973,0.00018036,2]
[372646621,1752731786166,-185.4413412,0.00018036,2]
[372646622,1752731790197,-293.15608321,0.00018036,2]
[372646623,1752731792307,-289.98960023,0.00018036,2]
[372646624,1752731798610,-153.33833505,0.00018036,2]
[372646625,1752731798844,152.40841546,0.00017834,2]
[372646626,1752731800100,242.13978212,0.00017936,2]
[372646627,1752731800952,-59.10368058,0.00018036,2]
[372646628,1752731800975,-190.90671919,0.00018036,2]
[372646629,1752731806905,-247.3264141,0.00018036,2]
[372646630,1752731812571,-61.76686671,0.00018036,2]
[372646631,1752731812596,-163.06420206,0.00018036,2]
[372646632,1752731814216,-217.64693115,0.00018036,2]
[372646633,1752731817030,-119.28886679,0.00018036,2]
[372646634,1752731817054,-180.16700554,0.00018036,2]
[372646635,1752731817078,-10.73971365,0.00018036,2]
[372646638,1752731820486,-190.90671919,0.00018036,2]
[372646639,1752731823263,-41.37917977,0.00018036,2]
[372646640,1752731823297,-174.20520106,0.00018036,2]
[372646641,1752731825988,-164.8331603,0.00018035,2]
[372646642,1752731829171,-135.1668397,0.00018035,2]
[372646643,1752731829197,-17.43788766,0.00018036,2]
[372646644,1752731831375,-411.93653531,0.00018036,2]
[372646645,1752731833810,-48.06346469,0.00018036,2]
[372646646,1752731833836,-90.25541114,0.00018036,2]
[372646647,1752731833859,-148.03506441,0.00018036,2]
[372646648,1752731837973,-277.22562023,0.00018036,2]
[372646649,1752731840397,-74.73931536,0.00018036,2]
[372646650,1752731840421,-127.58277739,0.00018036,2]
[372646651,1752731845756,-230.09974739,0.00018036,2]
[372646652,1752731845844,752.21504374,0.00017861,2]
[372646653,1752731856787,-142.31747522,0.00018036,2]
[372646654,1752731856811,-124.93769581,0.00018036,2]
[372646655,1752731864808,-198.81543304,0.00018036,2]
[372646656,1752731866365,-177.44288539,0.00018036,2]
[372646657,1752731869845,-83.74168157,0.00018036,2]
[372646658,1752731869868,-105.28381009,0.00018036,2]
[372646659,1752731873146,-189.24406715,0.00018036,2]
[372646660,1752731885174,-245.47212276,0.00018035,2]
[372646661,1752731887245,-54.52787724,0.00018035,2]
[372646662,1752731887269,-165.47212276,0.00018036,2]
[372646663,1752731887292,-54.88026565,0.00018036,2]
[372646664,1752731889571,-189.74858518,0.00018036,2]
[372646665,1752731893710,-190.73656462,0.00018036,2]
[372646666,1752731895871,-235.30291172,0.00018036,2]
[372646667,1752731897991,-215.7550185,0.00018036,2]
[372646668,1752731901999,-300.0,0.00018036,2]
[372646669,1752731903601,-222.06400111,0.00018036,2]
[372646670,1752731905990,-199.43471943,0.00018036,2]
[372646673,1752731910171,-195.83358927,0.00018036,2]
[372646678,1752731912360,-157.51717486,0.00018036,2]
[372646688,1752731938837,2797.00773588,0.00017982,2]
[372646691,1752732027134,230.904249,0.00013699,2]
[372646694,1752732051822,1922.66171083,0.00017982,2]
[372646696,1752732061348,199.68766136,0.00017936,2]
[372646699,1752732165575,168.4726304,0.00017173,2]
[372646703,1752732199085,1864.67182392,0.00017982,2]
[372646705,1752732235136,1437.1289993,0.00017034,2]
[372646708,1752732283643,150.0,0.00027396,120]
[372646710,1752732304408,1531.2856811,0.0001717,2]
[372646730,1752732386277,1414.88351032,0.00017935,2]
[372646731,1752732392566,1538.12936868,0.00017982,2]
[372646732,1752732406136,24900.0,0.00017034,2]
[372646739,1752732459300,894.79962125,0.00017982,2]
[372646740,1752732459323,348.31492803,0.00017982,2]
[372646741,1752732492179,5226.287986,0.00017607,2]
[372646742,1752732509578,-272.22,0.00018028,3]
[372646743,1752732509608,-816.7,0.00018028,3]
[372646744,1752732509637,-1200.0,0.0001803,2]
[372646745,1752732509669,-300.0,0.0001803,2]
[372646746,1752732509698,-6994.50108612,0.00018031,2]
[372646747,1752732509730,-416.57891388,0.00018031,2]
[372646784,1752732632748,-300.0,0.00018029,2]
[372646786,1752732632758,-300.0,0.00018029,2]
[372646788,1752732632771,-300.0,0.00018029,2]
[372646790,1752732632781,-300.0,0.00018029,2]
[372646792,1752732632791,-300.0,0.00018029,2]
[372646794,1752732632800,-1200.0,0.00018029,2]
[372646796,1752732632810,-411.26275475,0.0001803,2]
[372646798,1752732632820,-500.0,0.0001803,2]
[372646800,1752732632830,-483.46466564,0.0001803,2]
[372646802,1752732632839,-500.0,0.0001803,2]
[372646804,1752732632850,-500.0,0.0001803,2]
[372646806,1752732632859,-500.0,0.0001803,2]
[372646808,1752732632869,-500.0,0.0001803,2]
[372646811,1752732632879,-415.28777544,0.0001803,2]
[372646813,1752732632888,-500.0,0.0001803,2]
[372646816,1752732632898,-500.0,0.0001803,2]
[372646817,1752732632908,-500.0,0.0001803,2]
[372646820,1752732632918,-378.03070947,0.0001803,2]
[372646822,1752732632931,-458.4397402,0.0001803,2]
[372646824,1752732632940,-218.49195012,0.0001803,2]
[372646826,1752732632950,-500.0,0.0001803,2]
[372646828,1752732632960,-1200.0,0.00018031,2]
[372646830,1752732632970,-507.25011985,0.00018032,2]
[372646832,1752732632979,-460.0,0.00018032,2]
[372646834,1752732632990,-460.0,0.00018032,2]
[372646836,1752732633000,-460.0,0.00018032,2]
[372646838,1752732633009,-460.0,0.00018032,2]
[372646840,1752732633020,-460.0,0.00018032,2]
[372646842,1752732633030,-460.0,0.00018032,2]
[372646844,1752732633040,-460.0,0.00018032,2]
[372646847,1752732633050,-460.0,0.00018032,2]
[372646849,1752732633060,-460.0,0.00018032,2]
[372646851,1752732633070,-460.0,0.00018032,2]
[372646852,1752732633080,-460.0,0.00018032,2]
[372646855,1752732633090,-460.0,0.00018032,2]
[372646857,1752732633100,-460.0,0.00018032,2]
[372646859,1752732633110,-1897.43,0.00018032,2]
[372646861,1752732633119,-460.0,0.00018032,2]
[372646862,1752732633129,-460.0,0.00018032,2]
[372646864,1752732633139,-460.0,0.00018032,2]
[372646867,1752732633149,-460.0,0.00018032,2]
[372646869,1752732633159,-460.0,0.00018032,2]
[372646871,1752732633169,-460.0,0.00018032,2]
[372646873,1752732633178,-460.0,0.00018032,2]
[372646875,1752732633189,-460.0,0.00018033,2]
[372646877,1752732633199,-460.0,0.00018033,2]
[372646879,1752732633208,-460.0,0.00018033,2]
[372646881,1752732633219,-472.57671558,0.00018033,2]
[372646883,1752732633229,-460.0,0.00018033,2]
[372646885,1752732633239,-460.0,0.00018033,2]
[372646887,1752732633249,-460.0,0.00018033,2]
[372646888,1752732633259,-460.0,0.00018033,2]
[372646889,1752732633270,-500.0,0.00018034,2]
[372646890,1752732633280,-273.81165967,0.00018034,2]
[372646892,1752732633290,-560.84510845,0.00018034,2]
[372646893,1752732633300,-460.0,0.00018034,2]
[372646895,1752732633311,-460.0,0.00018034,2]
[372646896,1752732633322,-460.0,0.00018034,2]
[372646898,1752732633332,-460.0,0.00018034,2]
[372646900,1752732633342,-552.42439063,0.00018034,2]
[372646902,1752732633353,-526.10768136,0.00018034,2]
[372646904,1752732633363,-460.0,0.00018034,2]
[372646906,1752732633373,-460.0,0.00018034,2]
[372646908,1752732633383,-460.0,0.00018034,2]
[372646909,1752732633395,-460.0,0.00018034,2]
[372646910,1752732633409,-500.0,0.00018034,2]
[372646911,1752732633422,-4184.17,0.00018034,2]
[372646912,1752732633432,-460.0,0.00018034,2]
[372646913,1752732633443,-460.0,0.00018034,2]
[372646914,1752732633452,-460.0,0.00018034,2]
[372646915,1752732633462,-460.0,0.00018034,2]
[372646916,1752732633471,-2652.23,0.00018034,2]
[372646917,1752732633481,-460.0,0.00018034,2]
[372646918,1752732633492,-681.55,0.00018034,2]
[372646919,1752732633502,-460.0,0.00018034,2]
[372646920,1752732633513,-1597.7,0.00018034,2]
[372646921,1752732633524,-460.0,0.00018034,2]
[372646922,1752732633534,-460.0,0.00018034,2]
[372646923,1752732633543,-460.0,0.00018034,2]
[372646924,1752732633553,-460.0,0.00018034,2]
[372646925,1752732633563,-1889.09,0.00018034,2]
[372646926,1752732633573,-460.0,0.00018034,2]
[372646927,1752732633583,-460.0,0.00018034,2]
[372646928,1752732633593,-460.0,0.00018034,2]
[372646929,1752732633603,-460.0,0.00018034,2]
[372646930,1752732633613,-460.0,0.00018034,2]
[372646931,1752732633624,-722.89579905,0.00018034,2]
[372646932,1752732633638,-806.06420095,0.00018034,2]
[372646933,1752732633647,-218.81872763,0.00018034,2]
[372646934,1752732633659,-282.89331643,0.00018034,2]
[372646935,1752732633668,-166.73375499,0.00018034,2]
[372646936,1752732633712,-1054.38624501,0.00018034,2]
[372646937,1752732633722,-499.9,0.00018034,2]
[372646938,1752732633732,-460.0,0.00018034,2]
[372646939,1752732633741,-460.0,0.00018035,2]
[372646940,1752732633751,-460.0,0.00018035,2]
[372646941,1752732633760,-288.29456536,0.00018035,2]
[372646945,1752732638587,-273.15997113,0.00018029,2]
[372646946,1752732638596,-264.22563439,0.00018029,2]
[372646947,1752732638605,-471.75425777,0.00018032,2]
[372646948,1752732638616,-28.24574223,0.00018032,2]
[372646949,1752732638625,-460.0,0.00018034,2]
[372646950,1752732638635,-171.70543464,0.00018035,2]
[372646951,1752732638644,-500.0,0.00018035,2]
[372646952,1752732638653,-500.0,0.00018035,2]
[372646953,1752732638662,-422.00753729,0.00018035,2]
[372646954,1752732638671,-238.99725145,0.00018036,2]
[372646955,1752732638683,-166.1224829,0.00018036,2]
[372646956,1752732638692,-428.86156604,0.00018036,2]
[372646957,1752732638704,-31.13843396,0.00018036,2]
[372646958,1752732638713,-460.0,0.00018036,2]
[372646959,1752732638722,-70.70935383,0.00018036,2]
[372646960,1752732638734,-393.0245708,0.00018036,2]
[372646961,1752732638743,-464.46852934,0.00018036,2]
[372646962,1752732638752,-179.34364696,0.00018036,2]
[372646963,1752732638764,-266.8,0.00018036,2]
[372647020,1752732640807,-460.0,0.00018032,2]
[372647021,1752732640817,-13.85635304,0.00018036,2]
[372647022,1752732640827,-460.60356981,0.00018036,2]
[372647023,1752732640836,-460.0,0.00018036,2]
[372647024,1752732640845,-460.0,0.00018036,2]
[372647025,1752732640855,-460.0,0.00018036,2]
[372647026,1752732640864,-460.0,0.00018036,2]
[372647027,1752732640874,-460.0,0.00018036,2]
[372647028,1752732640883,-461.77587469,0.00018036,2]
[372647029,1752732640893,-460.0,0.00018036,2]
[372647030,1752732640903,-460.0,0.00018036,2]
[372647031,1752732640912,-460.0,0.00018036,2]
[372647032,1752732640921,-460.0,0.00018036,2]
[372647033,1752732640931,-460.0,0.00018036,2]
[372647034,1752732640940,-460.0,0.00018036,2]
[372647035,1752732640950,-462.18484371,0.00018036,2]
[372647037,1752732640959,-460.0,0.00018036,2]
[372647039,1752732640969,-460.0,0.00018036,2]
[372647041,1752732640978,-433.71062441,0.00018036,2]
[372647042,1752732640988,-460.0,0.00018036,2]
[372647043,1752732640997,-460.0,0.00018036,2]
[372647044,1752732641007,-460.0,0.00018036,2]
[372647045,1752732641017,-460.0,0.00018036,2]
[372647046,1752732641028,-460.0,0.00018036,2]
[372647047,1752732641037,-460.0,0.00018036,2]
[372647048,1752732641047,-460.0,0.00018036,2]
[372647049,1752732641056,-460.0,0.00018036,2]
[372647050,1752732641066,-460.0,0.00018036,2]
[372647051,1752732641076,-222.17104326,0.00018036,2]
[372647052,1752732641085,-460.0,0.00018036,2]
[372647053,1752732641095,-460.0,0.00018036,2]
[372647054,1752732641105,-462.86709415,0.00018036,2]
[372647055,1752732641115,-460.0,0.00018036,2]
[372647056,1752732641125,-461.20528914,0.00018036,2]
[372647057,1752732641135,-460.0,0.00018036,2]
[372647058,1752732641144,-460.0,0.00018036,2]
[372647059,1752732641153,-460.0,0.00018036,2]
[372647060,1752732641163,-460.0,0.00018036,2]
[372647061,1752732641172,-460.90201578,0.00018036,2]
[372647062,1752732641181,-460.0,0.00018036,2]
[372647063,1752732641191,-462.88603071,0.00018036,2]
[372647064,1752732641201,-460.0,0.00018036,2]
[372647065,1752732641210,-460.0,0.00018036,2]
[372647066,1752732641220,-460.0,0.00018036,2]
[372647067,1752732641229,-460.0,0.00018036,2]
[372647068,1752732641239,-460.0,0.00018036,2]
[372647069,1752732641249,-460.0,0.00018036,2]
[372647070,1752732641259,-460.0,0.00018036,2]
[372647071,1752732641268,-460.0,0.00018036,2]
[372647072,1752732641280,-460.0,0.00018036,2]
[372647073,1752732641289,-461.31436615,0.00018036,2]
[372647074,1752732641299,-461.4707293,0.00018036,2]
[372647075,1752732641309,-460.42734117,0.00018036,2]
[372647076,1752732641319,-460.0,0.00018036,2]
[372647077,1752732641328,-460.0,0.00018036,2]
[372647078,1752732641338,-460.0,0.00018036,2]
[372647079,1752732641347,-460.0,0.00018036,2]
[372647080,1752732641357,-460.0,0.00018036,2]
[372647081,1752732641367,-460.0,0.00018036,2]
[372647082,1752732641376,-460.0,0.00018036,2]
[372647083,1752732641386,-460.0,0.00018036,2]
[372647084,1752732641395,-460.0,0.00018036,2]
[372647085,1752732641407,-460.0,0.00018036,2]
[372647086,1752732641417,-460.0,0.00018036,2]
[372647087,1752732641426,-460.0,0.00018036,2]
[372647088,1752732641435,-460.0,0.00018036,2]
[372647089,1752732641447,-1404.83746411,0.00018036,2]
[372647090,1752732641456,-460.0,0.00018036,2]
[372647091,1752732641466,-460.0,0.00018036,2]
[372647092,1752732641475,-460.92916859,0.00018036,2]
[372647093,1752732641487,-460.0,0.00018036,2]
[372647094,1752732641496,-460.0,0.00018036,2]
[372647095,1752732641506,-460.0,0.00018036,2]
[372647096,1752732641515,-460.0,0.00018036,2]
[372647097,1752732641528,-500.0,0.00018036,2]
[372647098,1752732641537,-460.0,0.00018036,2]
[372647099,1752732641547,-460.0,0.00018036,2]
[372647100,1752732641556,-460.0,0.00018036,2]
[372647101,1752732641566,-460.0,0.00018036,2]
[372647102,1752732641576,-500.0,0.00018036,2]
[372647103,1752732641586,-531.26,0.00018036,2]
[372647104,1752732641596,-460.0,0.00018036,2]
[372647105,1752732641606,-460.0,0.00018036,2]
[372647106,1752732641615,-460.0,0.00018036,2]
[372647107,1752732641626,-500.0,0.00018036,2]
[372647108,1752732641635,-460.0,0.00018036,2]
[372647109,1752732641644,-460.0,0.00018036,2]
[372647110,1752732641654,-460.0,0.00018036,2]
[372647111,1752732641663,-460.0,0.00018036,2]
[372647112,1752732641672,-460.0,0.00018036,2]
[372647113,1752732641681,-460.0,0.00018036,2]
[372647114,1752732641691,-460.0,0.00018036,2]
[372647115,1752732641700,-460.0,0.00018036,2]
[372647116,1752732641709,-460.0,0.00018036,2]
[372647117,1752732641719,-460.0,0.00018036,2]
[372647118,1752732641728,-460.0,0.00018036,2]
[372647119,1752732641737,-460.0,0.00018036,2]
[372647120,1752732641747,-485.62,0.00018036,2]
[372647121,1752732641756,-460.0,0.00018036,2]
[372647122,1752732641766,-460.0,0.00018036,2]
[372647123,1752732641777,-517.70298011,0.00018036,2]
[372647124,1752732641787,-460.0,0.00018036,2]
[372647125,1752732641796,-460.0,0.00018036,2]
[372647126,1752732641805,-460.0,0.00018036,2]
[372647127,1752732641815,-748.08,0.00018036,2]
[372647128,1752732641824,-460.0,0.00018036,2]
[372647129,1752732641834,-460.0,0.00018036,2]
[372647130,1752732641843,-460.0,0.00018036,2]
[372647132,1752732641852,-460.0,0.00018036,2]
[372647133,1752732641862,-460.0,0.00018036,2]
[372647134,1752732641871,-462.08069338,0.00018036,2]
[372647135,1752732641880,-460.0,0.00018036,2]
[372647136,1752732641890,-460.0,0.00018036,2]
[372647137,1752732641899,-460.0,0.00018036,2]
[372647139,1752732641909,-460.0,0.00018036,2]
[372647141,1752732641919,-157.70851773,0.00018036,2]
[372647149,1752732643426,-302.29148227,0.00018036,2]
[372647150,1752732643435,-460.0,0.00018036,2]
[372647151,1752732643446,-460.0,0.00018036,2]
[372647152,1752732643456,-500.0,0.00018036,2]
[372647153,1752732643467,-460.0,0.00018036,2]
[372647154,1752732643477,-460.0,0.00018036,2]
[372647155,1752732643487,-460.0,0.00018036,2]
[372647156,1752732643497,-460.0,0.00018036,2]
[372647157,1752732643507,-460.0,0.00018036,2]
[372647158,1752732643516,-460.0,0.00018036,2]
[372647159,1752732643526,-460.0,0.00018036,2]
[372647160,1752732643538,-460.0,0.00018036,2]